Cogmind - Beta 15 @@@ ROGUE MODE // 2025.09.16 @ 21:28:04 Player: Runagate Result: Destroyed by H-61 Shepherd with Heavy Assault Cannon Performance ------------- Evolutions (3) 1500 Regions Visited (4) 800 Robots Destroyed (93) 465 Value Destroyed (2433) 2433 Prototype IDs (10) 200 Alien Tech Used (0) 0 Bonus (0) 0 TOTAL SCORE: 5398 Bonus ------- None Cogmind --------- Core Integrity 0/700 Matter 300/300 Energy 500/500 System Corruption 3% Temperature Cool (0) Movement Core (1750) Ox34 Location -7/Factory Parts ------- > --- POWER (1) -------- F-cell Engine > --- PROPULSION (3) --- (None) > --- UTILITY (6) ------ Heat Sink Huge Storage Unit Target Analyzer Microactuators Microactuators > --- WEAPON (3) ------- Kinetic Spear Kinetic Spear Kinetic Spear > --- INVENTORY (25) --- Nuclear Core Nuclear Core F-cell Engine Experimental Flexi-carbon Leg Cooled Nuclear Pulse Thruster Cooled Nuclear Pulse Thruster Cooled Nuclear Pulse Thruster Heat Sink Improved Heat Sink Large Matter Pod (150) Advanced Matter Compressor (400) Advanced Targeting Computer Recoil Stabilizer Microactuators Advanced ECM Suite Medium Laser Spread Laser Spread Laser High-powered Shotgun Maul Maul Great Maul Great Maul Scythe Peak State ------------ > --- POWER ------------ F-cell Engine > --- PROPULSION ------- Experimental Flexi-carbon Leg Wheel Wheel > --- UTILITY ---------- Heat Sink Huge Storage Unit Targeting Computer Target Analyzer Microactuators > --- WEAPON ----------- Kinetic Spear Kinetic Spear Kinetic Spear > --- INVENTORY -------- Nuclear Core Nuclear Core Nuclear Core F-cell Engine Cooled Nuclear Pulse Thruster Cooled Nuclear Pulse Thruster Cooled Nuclear Pulse Thruster Heat Sink Improved Heat Sink Large Matter Pod Advanced Matter Compressor Advanced Targeting Computer Recoil Stabilizer Microactuators Microactuators Advanced ECM Suite Medium Laser Spread Laser Spread Laser High-powered Shotgun Maul Maul Great Maul Great Maul Scythe [Rating: 55] Favorites ----------- Power Ion Engine Engine Ion Engine Power Core Nuclear Core Propulsion Wheel Treads Light Treads Leg Experimental Flexi-carbon Leg Wheel Wheel Utility Targeting Computer Device Seismic Detector Storage Huge Storage Unit Processor Targeting Computer Protection Medium Armor Plating Weapon Great Maul Energy Gun Spread Laser Ballistic Gun Assault Rifle Launcher Grenade Launcher Impact Weapon Great Maul Slashing Weapon Scythe Piercing Weapon Kinetic Spear Build | -11 -10 -9 -8 -7 ------- Run | Yrd Mat Mat Mat Fac Slots Evolved 6 | . . 2 2 2 Power . | . . . . . Propulsion 1 | . . . 1 . Utility 4 | . . 2 1 1 Weapon 1 | . . . . 1 Parts Attached 59 | 7 4 13 14 21 Power 9 | 1 1 1 3 3 Engine 6 | 1 1 1 2 1 Core 3 | . . . 1 2 Reactor . | . . . . . Propulsion 16 | 2 . 3 3 8 Treads 3 | 2 . 1 . . Leg 1 | . . . . 1 Wheel 12 | . . 2 3 7 Hover . | . . . . . Flight . | . . . . . Utility 18 | 2 1 6 5 4 Device 7 | 1 . 1 4 1 Storage 7 | 1 1 4 . 1 Processor 2 | . . 1 . 1 Hackware . | . . . . . Protection 2 | . . . 1 1 Artifact . | . . . . . Weapon 16 | 2 2 3 3 6 Energy Gun 2 | . 1 1 . . Energy Cannon . | . . . . . Ballistic Gun 6 | 2 1 2 1 . Ballistic Cannon . | . . . . . Launcher 2 | . . . . 2 Special Weapon . | . . . . . Impact Weapon 2 | . . . 1 1 Slashing Weapon 1 | . . . 1 . Piercing Weapon 3 | . . . . 3 Special Melee Weapon . | . . . . . Unidentified Prototypes 4 | . . . . 4 Parts Lost 14 | . . 1 . 13 Power . | . . . . . Propulsion 7 | . . . . 7 Utility 5 | . . 1 . 4 Weapon 2 | . . . . 2 Highest Loss Streak 6 | . . 1 . 6 To Critical Strikes . | . . . . . Average Backups 16 | 1 6 11 21 24 Power 2 | . 1 2 3 3 Propulsion 1 | . . . 3 3 Utility 5 | . 1 3 6 9 Weapon 6 | . 3 5 8 8 Tool/Special . | . . . . . Unused Backups 22 | . . 2 1 19 Power 4 | . . . . 4 Propulsion 4 | . . . 1 3 Utility 9 | . . 2 . 7 Weapon 5 | . . . . 5 Tool/Special . | . . . . . Average Slot Usage (%) 95 | . 100 90 99 96 Engine 6 | . 14 11 4 1 Core 2 | . . . 4 5 Treads 9 | . 28 15 . . Wheel 14 | . . 6 26 21 Device 15 | . 14 10 10 21 Storage 11 | . 14 13 17 7 Processor 9 | . . 11 9 11 Protection 1 | . . . 7 2 Energy Gun 2 | . . 7 . . Ballistic Gun 11 | . 27 14 17 . Impact Weapon 4 | . . . . 11 Slashing Weapon 2 | . . . . 5 Piercing Weapon 1 | . . . . 4 Peak Build Rating 55 | 7 7 13 26 55 Average Rating 20 | 5 7 10 20 35 On Entrance 10 | . 7 7 13 26 Naked Turns . | . . . . . Heaviest Build 121 | 14 20 112 121 112 Greatest Support 40 | 40 40 40 30 30 Greatest Overweight (x) 34 | . . 5 4 34 Average Overweight (x) 2 | . . 1 3 3 Largest Inventory Capacity 25 | 8 10 25 25 25 Average Capacity 19 | 7 9 15 25 25 Most Carried 25 | 2 8 17 25 25 Average Carried 16 | 1 6 11 21 24 Final Capacity 25 | 8 10 25 25 25 Final Carried 25 | 2 8 17 25 24 Class Distribution -------------------- 35% | Mutant 35% | Scavenger-Gladiator 26% | Scavenger-Mutant Dominant Class ---------------- Mutant | -10/Materials Mutant | -9/Materials Scavenger-Mutant | -8/Materials Scavenger-Gladiator | -7/Factory Resources | -11 -10 -9 -8 -7 ----------- Run | Yrd Mat Mat Mat Fac Matter Collected 2008 | 290 184 486 331 717 Remotely . | . . . . . Salvage Created 2932 | 137 417 737 124 1517 Parts 171 | 9 25 57 21 59 Haulers Intercepted 1 | . . . . 1 Recyclers Shooed 4 | . 1 1 . 2 Parts Field Recycled . | . . . . . Retrieved Matter . | . . . . . Parts Self-Destructed . | . . . . . Prevented . | . . . . . Kills | -11 -10 -9 -8 -7 ------- Run | Yrd Mat Mat Mat Fac Combat Hostiles Destroyed 53 | . 10 16 1 26 Melee 12 | . . . . 12 Guns 29 | . 10 16 1 2 AOE 7 | . . . . 7 Classes Destroyed 15 | 2 4 3 . 6 Worker 11 | . . 4 1 6 Builder 5 | . . 1 2 2 Tunneler 3 | 2 . . 1 . Hauler 1 | . . . . 1 Recycler 8 | 1 1 1 . 5 Mechanic 1 | . . . . 1 Operator 2 | . 1 . 1 . Watcher 9 | . 3 4 . 2 Swarmer 12 | . 6 4 . 2 Grunt 21 | . 4 8 . 9 Protector 1 | . . . . 1 Sentry 6 | . . 4 1 1 Specialist 3 | . . . . 3 Hunter 5 | . . . . 5 Programmer 5 | . . . . 5 Best Kill Streak 17 | 2 7 9 3 17 Combat Bots Only 9 | . 6 7 1 9 Max Kills in Single Turn 5 | 1 2 2 1 5 Gunslinging 1 | . 1 1 . . Exploded 4 | . . . . 4 Melee 1 | . . . . 1 Uniques/NPCs Destroyed . | . . . . . Combat | -11 -10 -9 -8 -7 -------- Run | Yrd Mat Mat Mat Fac Hostile Shots Fired 272 | . 53 42 10 167 Missed 90 | . 12 10 3 65 Hits 182 | . 41 32 7 102 Projectile 182 | . 41 32 7 102 Critical Strikes 5 | . 2 . . 3 Damage Taken 3047 | . 379 452 104 2112 Core 817 | . 52 65 . 700 Absorbed by Shields . | . . . . . Regen/Repaired (Parts) 54 | . . 54 . . Core Remaining (%) 90 | 100 79 83 100 . Volleys Fired 104 | 5 37 41 14 7 Largest 2 | 2 2 2 2 2 Hottest 90 | 40 70 88 48 90 Shots Fired 206 | 10 74 82 28 12 Gun 200 | 10 74 82 28 6 Cannon . | . . . . . Launcher 6 | . . . . 6 Special . | . . . . . Kinetic 163 | 10 70 52 28 3 Thermal 37 | . 4 30 . 3 Explosive 6 | . . . . 6 Electromagnetic . | . . . . . Robot Hit Streak 11 | 3 7 11 10 3 Robot Miss Streak 6 | 2 6 5 2 3 Penetration Max . | . . . . . Secondary Targets 6 | . 2 2 . 2 Max Gunslinging Chain 1 | . 1 1 . 1 Shots Hit Robots 203 | 5 37 67 22 72 Core Hits 164 | 3 21 68 8 64 Critical Kills 1 | . . . . 1 Critical Parts Destroyed 11 | . . . 1 10 Critical Strikes 16 | . . . 1 15 Destroy 1 | . . . 1 . Smash 11 | . . . . 11 Sever 1 | . . . . 1 Impale 3 | . . . . 3 Melee Attacks 110 | . . . . 110 Impact 63 | . . . . 63 Slashing 27 | . . . . 27 Piercing 20 | . . . . 20 Sneak Attacks 12 | . . . . 12 Combat Hostiles 2 | . . . . 2 Follow-up Attacks 28 | . . . . 28 Damage Inflicted 6319 | 54 448 1004 336 4477 Guns 1914 | 54 448 998 336 78 Cannons . | . . . . . Explosions 1412 | . . . . 1412 Melee 2987 | . . . . 2987 Ramming 6 | . . 6 . . Kinetic 1408 | 54 435 542 336 41 Thermal 506 | . 13 456 . 37 Explosive 1412 | . . . . 1412 Electromagnetic . | . . . . . Impact 1782 | . . . . 1782 Slashing 460 | . . . . 460 Piercing 745 | . . . . 745 Highest Corruption 3 | . . . . 3 Average Corruption 1 | . . . . 1 Corruption Purged . | . . . . . Corruption Blocked . | . . . . . Effects 8 | . . . . 8 Message Errors 2 | . . . . 2 Matter Fused 2 | . . . . 2 Heat Flow Errors 2 | . . . . 2 Data Loss (minor) 2 | . . . . 2 Overload Shots . | . . . . . Overflow Damage 914 | . . . . 914 Projectiles . | . . . . . Explosions 34 | . . . . 34 Melee 880 | . . . . 880 Knockbacks 9 | . . . . 9 Impact 9 | . . . . 9 Kinetic . | . . . . . Secondary . | . . . . . Self-Inflicted Damage 52 | . . . . 52 Shots 2 | . . . . 2 Rammed 1 | . . 1 . . Targets Rammed 2 | . . 2 . . Kicked . | . . . . . Crushed 1 | . . 1 . . Highest Temperature 233 | . 48 153 . 233 Average Temperature 50 | . 19 50 . 101 Received Heat Transfer 408 | . 102 162 27 117 Siege Activations . | . . . . . Martial Activations . | . . . . . Shielding Activations . | . . . . . Robots Disrupted . | . . . . . Combat Hostiles . | . . . . . Robots Corrupted 8 | . . . . 8 Combat Hostiles 5 | . . . . 5 Parts Fried 13 | . . . . 13 Impact Corruptions 29 | . . . . 29 Robots Melted . | . . . . . Combat Hostiles . | . . . . . Parts Melted . | . . . . . Heat Transferred 647 | . 37 565 . 45 Parts Sabotaged . | . . . . . Parts Stolen . | . . . . . Parts Stripped . | . . . . . Power Chain Reactions . | . . . . . Alert | -11 -10 -9 -8 -7 ------- Run | Yrd Mat Mat Mat Fac Maximum Alert Level 1 | . . 1 . 1 Low Security (%) 79 | 100 100 62 100 74 Level 1 20 | . . 37 . 25 Level 2 . | . . . . . Level 3 . | . . . . . Level 4 . | . . . . . Level 5 . | . . . . . High Security . | . . . . . Max Security . | . . . . . Peak Influence 399 | 10 165 363 123 399 Initial 122 | . . 62 122 . Average 103 | 1 42 141 42 134 Influence Increases 1756 | 15 279 525 57 880 Destroy 0b10 Robot/C 1040 | . 200 320 20 500 Destroy 0b10 Robot/NC 205 | 15 25 50 25 90 Destroy Leader 250 | . 46 88 10 106 Successful Hack 10 | . 7 3 . . Destroy Structure 26 | . 1 4 2 19 Partial Spotted 15 | . . . . 15 Lose Combat Pursuer 210 | . . 60 . 150 Influence Decreases 1421 | 15 130 382 349 545 Entered New Map 257 | . . 87 170 . Time Decay 1024 | 15 130 285 179 415 Lost Part 140 | . . 10 . 130 Squads Dispatched 12 | . 2 2 3 5 Investigation 3 | . 1 1 . 1 Extermination 2 | . . . . 2 Reinforcement 7 | . 1 1 3 2 Assault . | . . . . . Garrison . | . . . . . Intercept . | . . . . . Searches Triggered . | . . . . . Construction Impeded 1 | . . . . 1 Haulers Reinforced . | . . . . . Active Scanning Responses . | . . . . . Cargo Convoy Interrupts 1 | . . . . 1 Stealth | -11 -10 -9 -8 -7 --------- Run | Yrd Mat Mat Mat Fac Distress Signals 9 | . 3 1 4 1 Communications Jammed . | . . . . . Distress Signals . | . . . . . Times Spotted 87 | . 17 21 3 46 Peak Tracking Total 11 | . 4 7 2 11 Tactical Retreats 11 | . . 3 . 8 Traps | -11 -10 -9 -8 -7 ------- Run | Yrd Mat Mat Mat Fac Traps Triggered 3 | . 1 1 . 1 Indirectly . | . . . . . Trap Hack Attempts . | . . . . . Triggered . | . . . . . Disarmed . | . . . . . Reprogrammed . | . . . . . Reused . | . . . . . Traps Extracted . | . . . . . Installed . | . . . . . Triggered . | . . . . . Machines | -11 -10 -9 -8 -7 ---------- Run | Yrd Mat Mat Mat Fac Machines Disabled . | . . . . . Max in Single Turn . | . . . . . Machines Repaired . | . . . . . Machines Dismantled . | . . . . . Machines Sabotaged . | . . . . . Overloaded Fab Kills . | . . . . . Hacking | -11 -10 -9 -8 -7 --------- Run | Yrd Mat Mat Mat Fac Machines Accessed 15 | . 5 4 2 4 Terminals 12 | . 4 3 2 3 Fabricators . | . . . . . Repair Stations 3 | . 1 1 . 1 Recycling Units . | . . . . . Scanalyzers . | . . . . . Garrison Access . | . . . . . Total Hacks 36 | . 9 11 10 6 Successful 16 | . 2 7 7 . Failed 20 | . 7 4 3 6 Catastrophic 4 | . 1 1 . 2 Database Lockouts . | . . . . . Manual 8 | . 2 4 . 2 Terminals 29 | . 8 7 10 4 Fabricators . | . . . . . Repair Stations 7 | . 1 4 . 2 Recycling Units . | . . . . . Scanalyzers . | . . . . . Garrison Access . | . . . . . Terminal Hacks 12 | . 2 3 7 . Part Schematic 1 | . . 1 . . Prototype ID Bank 3 | . . 1 2 . Emergency Access Points 2 | . 1 . 1 . Alert Level 1 | . . . 1 . Locate Traps 1 | . . . 1 . Maintenance Status 1 | . . 1 . . Registered Components 1 | . 1 . . . Zone Layout 2 | . . . 2 . Fabricator Hacks . | . . . . . Repair Station Hacks 4 | . . 4 . . Scan Component 2 | . . 2 . . Repair 2 | . . 2 . . Recycling Unit Hacks . | . . . . . Scanalyzer . | . . . . . Garrison Access Hacks . | . . . . . Unauthorized Hacks . | . . . . . Terminals . | . . . . . Fabricators . | . . . . . Repair Stations . | . . . . . Recycling Units . | . . . . . Scanalyzers . | . . . . . Garrison Access . | . . . . . Data Cores Recovered . | . . . . . Used . | . . . . . Hacking Detections 15 | . 5 4 2 4 Full Trace Events 1 | . . 1 . . Feedback Events . | . . . . . Feedback Blocked . | . . . . . Robot Schematics Acquired . | . . . . . Robots Built . | . . . . . Authchips . | . . . . . Time . | . . . . . Total Robot Build Rating . | . . . . . Part Schematics Acquired 1 | . . 1 . . Parts Built . | . . . . . Authchips . | . . . . . Time . | . . . . . Total Part Build Rating . | . . . . . Parts Repaired 2 | . . 2 . . Time 52 | . . 52 . . Parts Recycled . | . . . . . Recycled Matter . | . . . . . Retrieved Matter . | . . . . . Retrieved Components . | . . . . . Parts Scanalyzed . | . . . . . Part Schematics Acquired . | . . . . . Parts Damaged . | . . . . . Bothacking | -11 -10 -9 -8 -7 ------------ Run | Yrd Mat Mat Mat Fac Used RIF Installer . | . . . . . Robots Hacked . | . . . . . Non-combat . | . . . . . Combat . | . . . . . Robot Hacks Applied . | . . . . . Relay Couplers Released . | . . . . . Fabnet Peak Effective % . | . . . . . Robots Rewired . | . . . . . Allies Hacked . | . . . . . Hacks Repelled . | . . . . . Allies | -11 -10 -9 -8 -7 -------- Run | Yrd Mat Mat Mat Fac Total Allies . | . . . . . Largest Group . | . . . . . Highest-Rated Group . | . . . . . Highest-Rated Ally . | . . . . . Total Orders . | . . . . . Ally Attacks . | . . . . . Total Damage . | . . . . . Kills . | . . . . . Allies Corrupted . | . . . . . Allies Melted . | . . . . . Intel | -11 -10 -9 -8 -7 ------- Run | Yrd Mat Mat Mat Fac Active Infowar (turns) 2867 | 16 704 871 97 1179 Seismic 2867 | 16 704 871 97 1179 Robot Analysis Total . | . . . . . Derelict Logs Recovered . | . . . . . Drone Launches . | . . . . . Drone Recoveries . | . . . . . Exploration | -11 -10 -9 -8 -7 ------------- Run | Yrd Mat Mat Mat Fac Turns Passed 4020 | 114 704 1070 547 1585 Spaces Moved 2079 | 51 278 536 336 878 Core 3 | 2 . . . 1 Treads 634 | 49 278 307 . . Legs . | . . . . . Wheels 1442 | . . 229 336 877 Hover . | . . . . . Flight . | . . . . . Fastest Speed 50 | 50 160 95 125 125 Average Speed 138 | 155 160 148 129 128 Slowest Speed 1750 | 160 160 240 140 1750 Overloaded Moves . | . . . . . Propulsion Burnouts . | . . . . . Robots Hopped . | . . . . . Potential Cave-ins . | . . . . . Cave-ins Triggered . | . . . . . Exploration Rate (%) 29 | 5 57 44 24 17 Regions Visited 4 Branch Regions . Pre-discovered Areas . | . . . . . Known Exits Taken . | . . . . . Unknown Exits Taken 4 | 1 1 1 1 . Scrap Searched . | . . . . . Spaces Dug 7 | . . . . 7 Terrain Destroyed 21 | . . . . 21 Melee 7 | . . . . 7 Projectile . | . . . . . AOE 14 | . . . . 14 Terrain Rammed . | . . . . . Walls Destroyed . | . . . . . Machines Disabled . | . . . . . Actions | -11 -10 -9 -8 -7 --------- Run | Yrd Mat Mat Mat Fac Total 2917 | 73 468 727 423 1226 Wait 515 | 9 144 107 33 222 Move 2075 | 50 277 535 335 878 Hop . | . . . . . Pick Up 50 | 2 5 11 16 16 Fast Attach 16 | 7 . 5 1 3 Attach 12 | . . 1 2 9 Detach 2 | . . 2 . . Swap 43 | . 4 13 11 15 Drop 34 | . 1 10 11 12 Fire 104 | 5 37 41 14 7 Melee 64 | . . . . 64 Ram . | . . . . . Kick . | . . . . . Crush 2 | . . 2 . . Escape Stasis . | . . . . . Rewire . | . . . . . Trap . | . . . . . Miscellaneous . | . . . . . Route ------- -11/Scrapyard -10/Materials -9/Materials (discovered 2 exits: *Mat / [*Min]) -8/Materials -7/Factory History --------- Turn | Location | Event 37 | -11/Scrapyard | Discovered new exit (range 15) 115 | -11/Scrapyard | Entered Materials 310 | -10/Materials | Build established: Mutant 753 | -10/Materials | Discovered new exit (range 16) 819 | -10/Materials | Entered another Materials area 819 | -9/Materials | Evolved 2 slots: Utility x2 967 | -9/Materials | Discovered new exit (range 14) 1237 | -9/Materials | Repaired Ion Engine 1266 | -9/Materials | Repaired Seismic Detector 1544 | -9/Materials | Discovered new exit (range 16) 1559 | -9/Materials | Destroyed 7 combat bots 1763 | -9/Materials | Build established: Scavenger-Mutant 1889 | -9/Materials | Entered another Materials area 1889 | -8/Materials | Evolved 2 slots: Propulsion x1, Utility x1 2029 | -8/Materials | Met 7R-MNS 2392 | -8/Materials | Discovered new exit (range 15) 2436 | -8/Materials | Entered Factory 2436 | -7/Factory | Evolved 2 slots: Utility x1, Weapon x1 2702 | -7/Factory | Build established: Scavenger-Gladiator 3612 | -7/Factory | Cargo convoy interrupted 3652 | -7/Factory | Destroyed 9 combat bots 3663 | -7/Factory | Lost 6 parts (2n2u2w) 3985 | -7/Factory | Core integrity fell below 50% 4000 | -7/Factory | Core integrity fell below 20% 4021 | -7/Factory | Destroyed by H-61 Shepherd with Heavy Assault Cannon Last Messages --------------- 03984_ Knocked back. 03986_ Penetrated by Slug. 03986_ Knocked back. 03986_ Subcomponent Replicator disabled. 03987_ K-01 Serf collects debris. 03988_ Knocked back. 03989_ K-01 Serf collects debris. 03990_ Wheel destroyed. 03990_ Knocked back. 03993_ K-01 Serf collects debris. 03996_ K-01 Serf cleans the Subcomponent Replicator. 03997_ Knocked back. 03997_ K-01 Serf collects debris. 04006_ K-01 Serf cleans the Subcomponent Replicator. 04009_ Targeting Computer destroyed. 04012_ K-01 Serf cleans the Subcomponent Replicator. 04021_ Penetrated by Slug. Map ----- +----------------------------------------------------+ | ?????????????????????????????????????????????????? | | ?????????????????????????????????????????????????? | | ?????????????????????????????????????????????????? | | ?????????????????????????????????????????????????? | | ?????????????????????????????????????????????????? | | ?????????????????????????????????????????????????? | | ?????????????????????????????????????????????????? | | ?????????????????????????????????????????????????? | | ?????????????????????????????????????????????????? | | ?????????????????????????????????????????????????? | | ????""???????????????????????????????????????????? | | ??? """??????????????????????????????????????????? | | ??? """??????????????????????????????????????????? | | ??? ?????????????????????????????????????????? | | ??" """ ?????????????????????????????????????????? | | """ """ ????????????????????????????????????????? | | """ """ ????????????????????????????????????????? | | ? ???????????????????????????????????????? | | ??" """ ###################### ??????????????? | | ??" """ = =%=+ %% # ??????????????? | | ??" """ #########g ] #?????????????????? | | ? ????????# kg % % #?????????????????? | | """ """ ?????????# %H uk #?????????????????? | | """ """ ?????????# " "" #?????????????????? | | ??" """ ??????????# " """ # #???????????? | | ??? ??????????# ""@ k #???????????? | | ??? ???????????# %% % # +???????????? | | ???####???????????# """"" # #???????????? | | ??????????????????# """"" # #???????????? | | ??????????????????# """ # #???????????? | | ??????????????????# kk # #???????????? | | ??????????????????#######+###### #???????????? | | ????????????????????????# #????# #???????????? | | ????????????????????????# #????# #???????????? | | ????????????????????????# #????# ###########?? | | ????????????????????????# #????# #!!! ! #?? | | ????????????????????????# ###### #!! = #?? | | ????????????????????????# #!! =#?? | | ????????????????????????# # #?? | | ????????????????????????+ # """ """ ### | | ????????????????????????# # """ """ ## | | ????????????????????????+ # """ """ ### | | ????????????????????????# # # # | | ????????????????????????# #####+####### | | ????????????????????????# | | ????????????????????????# | | ????????????????????????# | | ????????????????????????# | | ????????????????????????# | | ????????????????????????#########################+ | +----------------------------------------------------+ Best States ------------- Heat Dissipation 45 Energy Generation 19 Energy Capacity 500 Matter Stores 300 Matter Capacity 300 Sight Range 16 Terrain Scan Density 10 Armor Coverage 225 Melee Speed Boost 40 Evasion (%) 41 Targeting Accuracy 5 Target Analysis 5 Recoil Reduction 2 Item Schematics ----------------- Arm. Wheel | -9/Materials | Hacked Robot Schematics ------------------ None Fabricated ------------ Nothing Repaired ---------- Ion Engine | 25% | -9/Materials Seismic Detector | 55% | -9/Materials Alien Tech Used ----------------- None Achievements -------------- None Challenges ------------ None Game ------ Seed WeaponReflectiveBank Manual? 0 Play Time 00:31:17 Cumulative 68.9 hours Start 2025.09.16 @ 20:53:54 End 2025.09.16 @ 21:28:04 Sessions 1 Manual Loads 0 Difficulty Rogue Special Mode None Game No. 146 Rogue 144 Adventurer 0 Explorer 2 Win Type - Total 0 Types 0/0/0/0/0/0/0/0/0/0 Lore% 27 Gallery% 43 Achievement% 40 Wizard Run 0 Options --------- Layout 2 ASCII 0 Keyboard 1 Movement Arrows Keybinds 0 Fullscreen 1 Font 28/SmallcapsGlow Map View 50x49 Zoom Use 0% Tactical HUD 1 Map Filters NONE Filters NONE Steam 1 RUN: e0b72f2d-6966-4074-af8a-301d8d0126c5